lending/lending_fUSD_20251107
["ID","MTS","AMOUNT","RATE_DAILY","PERIOD"]
[393363443,1762528765077,2260.9,0.00039017,120]
[393363444,1762528765352,2260.9,0.00039017,120]
[393363445,1762528765898,2261.04,0.00039017,120]
[393363446,1762528766680,-151.59817774,0.00015922,2]
[393363447,1762528766703,-94.9106838,0.00016299,2]
[393363448,1762528775658,509.91851488,0.00039017,120]
[393363449,1762528779559,460.0,0.00039017,120]
[393363450,1762528784462,1318.58,0.00039017,120]
[393363451,1762528784713,1318.58,0.00039017,120]
[393363452,1762528784992,1318.58,0.00039017,120]
[393363453,1762528785231,1318.58,0.00039017,120]
[393363454,1762528785502,1318.58,0.00039017,120]
[393363455,1762528785759,1318.58,0.00039017,120]
[393363456,1762528785803,500.0,0.00039017,120]
[393363457,1762528786047,500.0,0.00039017,120]
[393363458,1762528786309,500.0,0.00039017,120]
[393363459,1762528786352,1318.58,0.00039017,120]
[393363460,1762528786577,500.0,0.00039017,120]
[393363461,1762528786623,1318.58,0.00039017,120]
[393363462,1762528786838,500.0,0.00039017,120]
[393363463,1762528786921,1318.58,0.00039017,120]
[393363464,1762528787099,500.0,0.00039017,120]
[393363465,1762528787172,1318.58,0.00039017,120]
[393363466,1762528787426,1318.58,0.00039017,120]
[393363467,1762528787506,500.0,0.00039017,120]
[393363468,1762528787752,500.0,0.00039017,120]
[393363469,1762528788000,500.0,0.00039017,120]
[393363470,1762528788048,1318.58,0.00039017,120]
[393363471,1762528788230,500.0,0.00039017,120]
[393363472,1762528788273,1318.58,0.00039017,120]
[393363473,1762528788484,500.0,0.00039017,120]
[393363474,1762528788527,1318.58,0.00039017,120]
[393363475,1762528788742,500.0,0.00039017,120]
[393363476,1762528788786,1318.58,0.00039017,120]
[393363477,1762528788987,500.0,0.00039017,120]
[393363478,1762528789050,1318.58,0.00039017,120]
[393363479,1762528789239,500.0,0.00039017,120]
[393363480,1762528789323,1318.58,0.00039017,120]
[393363481,1762528789474,500.0,0.00039017,120]
[393363482,1762528789744,1318.58,0.00039017,120]
[393363483,1762528789787,500.0,0.00039017,120]
[393363484,1762528789848,1318.58,0.00039017,120]
[393363485,1762528789994,500.0,0.00039017,120]
[393363486,1762528790113,1318.58,0.00039017,120]
[393363487,1762528790266,500.0,0.00039017,120]
[393363488,1762528790370,1318.58,0.00039017,120]
[393363489,1762528790525,516.25,0.00039017,120]
[393363490,1762528790613,1318.58,0.00039017,120]
[393363491,1762528790858,1318.58,0.00039017,120]
[393363492,1762528791121,1318.73,0.00039017,120]
[393363493,1762528792818,500.0,0.00039017,120]
[393363494,1762528793160,404.64588832,0.00039017,120]
[393363495,1762528796586,568.23399054,0.00039017,120]
[393363496,1762528798754,1507.4,0.00039017,120]
[393363497,1762528798987,1507.4,0.00039017,120]
[393363498,1762528799233,1507.4,0.00039017,120]
[393363499,1762528799590,1507.4,0.00039017,120]
[393363500,1762528800058,1507.4,0.00039017,120]
[393363501,1762528800109,1507.4,0.00039017,120]
[393363502,1762528800482,1507.4,0.00039017,120]
[393363503,1762528800615,1507.4,0.00039017,120]
[393363504,1762528800871,1507.4,0.00039017,120]
[393363505,1762528801126,1507.4,0.00039017,120]
[393363506,1762528801398,1507.4,0.00039017,120]
[393363507,1762528801676,1507.4,0.00039017,120]
[393363508,1762528801935,1507.4,0.00039017,120]
[393363509,1762528802202,1507.4,0.00039017,120]
[393363510,1762528802445,1507.4,0.00039017,120]
[393363511,1762528802694,1507.4,0.00039017,120]
[393363512,1762528802948,1507.4,0.00039017,120]
[393363513,1762528803168,225.84,0.00039017,30]
[393363514,1762528803218,1507.4,0.00039017,120]
[393363515,1762528803442,1507.4,0.00039017,120]
[393363516,1762528803703,1507.4,0.00039017,120]
[393363517,1762528803951,1507.4,0.00039017,120]
[393363518,1762528804216,1507.4,0.00039017,120]
[393363519,1762528804418,460.0,0.00039017,120]
[393363520,1762528804492,1507.4,0.00039017,120]
[393363521,1762528804747,1507.4,0.00039017,120]
[393363522,1762528808187,508.2289723,0.00039017,120]
[393363523,1762528808674,460.0,0.00039017,120]
[393363524,1762528810620,555.0291614,0.00039025,120]
[393363525,1762528816084,1892.35,0.00039025,120]
[393363526,1762528816340,1892.35,0.00039025,120]
[393363527,1762528816605,1892.35,0.00039025,120]
[393363528,1762528816878,1892.35,0.00039025,120]
[393363529,1762528817188,1892.35,0.00039025,120]
[393363530,1762528817467,1892.35,0.00039025,120]
[393363531,1762528817729,1892.35,0.00039025,120]
[393363532,1762528818008,1892.35,0.00039025,120]
[393363533,1762528818276,1892.35,0.00039025,120]
[393363534,1762528818525,1892.35,0.00039025,120]
[393363535,1762528818982,1892.35,0.00039025,120]
[393363536,1762528819042,1892.35,0.00039025,120]
[393363537,1762528819297,1892.35,0.00039025,120]
[393363538,1762528819612,1892.35,0.00039025,120]
[393363539,1762528819868,1892.35,0.00039025,120]
[393363540,1762528820116,1892.35,0.00039025,120]
[393363541,1762528820579,1892.35,0.00039025,120]
[393363542,1762528820632,1892.35,0.00039025,120]
[393363543,1762528820849,1892.35,0.00039025,120]
[393363544,1762528821386,1892.35,0.00039025,120]
[393363545,1762528821998,1892.35,0.00039025,120]
[393363546,1762528822269,1892.35,0.00039025,120]
[393363547,1762528822548,1892.35,0.00039025,120]
[393363548,1762528822842,1892.53,0.00039025,120]
[393363549,1762528841620,-205.09069962,0.00016299,2]
[393363550,1762528841643,-133.55067431,0.00016399,2]
[393363551,1762528844172,500.0,0.00039025,120]
[393363552,1762528844414,205.81,0.00039025,120]
[393363553,1762528847367,500.0,0.00039025,120]
[393363554,1762528847607,500.0,0.00039025,120]
[393363555,1762528847856,500.0,0.00039025,120]
[393363556,1762528848124,500.0,0.00039025,120]
[393363557,1762528848385,500.0,0.00039025,120]
[393363558,1762528848647,500.0,0.00039025,120]
[393363559,1762528848887,500.0,0.00039025,120]
[393363560,1762528849131,500.0,0.00039025,120]
[393363561,1762528849406,500.0,0.00039025,120]
[393363562,1762528854965,242.85797263,0.00039025,120]
[393363563,1762528860656,150.0,0.00039025,120]
[393363564,1762529059418,493.86095295,0.00039025,120]
[393363568,1762529123321,1000.0,0.00039025,120]
[393363569,1762529133114,500.0,0.00039025,120]
[393363570,1762529133346,500.0,0.00039025,120]
[393363571,1762529133607,286.30063247,0.00039025,120]
[393363573,1762529213314,500.0,0.00039025,120]
[393363574,1762529213803,500.0,0.00039025,120]
[393363575,1762529213850,500.0,0.00039025,120]
[393363576,1762529214061,500.0,0.00039025,120]
[393363577,1762529214545,500.0,0.00039025,120]
[393363578,1762529214803,500.0,0.00039025,120]
[393363579,1762529214875,5000.00705015,0.000162,5]
[393363580,1762529215254,500.0,0.00039025,120]
[393363581,1762529215579,500.0,0.00039025,120]
[393363582,1762529215935,500.0,0.00039025,120]
[393363583,1762529216165,587.48552111,0.00039025,120]
[393363584,1762529231166,-176.33,0.00015731,2]
[393363585,1762529231191,-176.33,0.00016283,2]
[393363586,1762529231214,-33.11932569,0.00016399,2]
[393363587,1762529231237,-303.22136661,0.00016574,2]
[393363588,1762529242627,473.51343599,0.00039025,120]
[393363590,1762529300146,183.27273281,0.00039025,120]
[393363591,1762529316033,-200.0,0.0001634,2]
[393363592,1762529316063,-696.77863339,0.00016574,2]
[393363593,1762529316092,-1472.3,0.00016726,2]
[393363594,1762529316122,-300.0,0.00016831,2]
[393363595,1762529316151,-1200.0,0.00016831,2]
[393363596,1762529316174,-200.0,0.00016832,2]
[393363597,1762529316186,-696.77863339,0.00016832,2]
[393363598,1762529316197,-1472.3,0.00016832,2]
[393363599,1762529316208,-300.0,0.00016832,2]
[393363600,1762529316223,-1200.0,0.00016832,2]
[393363601,1762529316235,-2261.85273322,0.00016832,2]
[393363603,1762529321868,-3046.62344922,0.00016832,2]
[393363604,1762529321888,-3046.62344922,0.00016832,2]
[393363605,1762529321900,-3906.76310156,0.00016832,2]
[393363606,1762529325143,-760.54451488,0.00016832,2]
[393363607,1762529325156,-8478.92097024,0.00016832,2]
[393363608,1762529325166,-176.33,0.00016835,2]
[393363609,1762529325180,-477.21,0.000169,2]
[393363610,1762529325190,-107.00451488,0.000169,2]
[393363611,1762529325370,-591.67548512,0.000169,2]
[393363612,1762529325402,-954.42,0.000169,2]
[393363613,1762529325441,-151.0,0.00016922,2]
[393363614,1762529325478,-151.0,0.00016922,2]
[393363615,1762529325512,-151.0,0.00016922,2]
[393363616,1762529325546,-151.0,0.00016922,2]
[393363617,1762529325578,-151.0,0.00016922,2]
[393363618,1762529325610,-151.0,0.00016922,2]
[393363619,1762529325641,-151.0,0.00016922,2]
[393363620,1762529325681,-151.0,0.00016922,2]
[393363621,1762529325717,-151.0,0.00016922,2]
[393363622,1762529325751,-151.0,0.00016922,2]
[393363623,1762529325782,-151.0,0.00016922,2]
[393363624,1762529325814,-151.0,0.00016922,2]
[393363625,1762529325845,-151.0,0.00016922,2]
[393363626,1762529325878,-151.0,0.00016922,2]
[393363627,1762529325910,-151.0,0.00016922,2]
[393363628,1762529325948,-151.0,0.00016922,2]
[393363629,1762529325983,-151.0,0.00016922,2]
[393363630,1762529326017,-151.0,0.00016922,2]
[393363631,1762529326049,-151.0,0.00016922,2]
[393363632,1762529326315,-151.0,0.00016922,2]
[393363633,1762529326344,-187.14,0.00016922,2]
[393363634,1762529326558,-500.0,0.00016931,2]
[393363635,1762529326568,-91.67548512,0.00016931,2]
[393363636,1762529326579,-408.32451488,0.00016931,2]
[393363637,1762529326589,-460.0,0.00016931,2]
[393363638,1762529326598,-86.09548512,0.00016931,2]
[393363639,1762529326609,-151.0,0.00016931,2]
[393363640,1762529326624,-151.0,0.00016931,2]
[393363641,1762529326658,-111.90451488,0.00016931,2]
[393363642,1762529326693,-500.0,0.00016931,2]
[393363643,1762529326721,-500.0,0.00016931,2]
[393363644,1762529326752,-500.0,0.00016931,2]
[393363645,1762529326780,-194.78134034,0.00016931,2]
[393363646,1762529326809,-500.0,0.00016931,2]
[393363647,1762529326840,-296.07067994,0.00016931,2]
[393363648,1762529326875,-500.0,0.00016931,2]
[393363649,1762529334706,415.63440103,0.00016931,2]
[393363650,1762529338850,276.98256904,0.00016832,2]
[393363651,1762529342370,300.0,0.00016931,2]
[393363652,1762529349601,158.57050889,0.00016832,2]
[393363653,1762529351127,2643.30945072,0.00016858,2]
[393363654,1762529351152,8629.49169428,0.00016858,2]
[393363655,1762529356091,500.0,0.00016299,2]
[393363656,1762529382101,526.281467,0.00016847,2]
[393363657,1762529392929,344.23683872,0.00016858,2]
[393363658,1762529392953,609.83353648,0.00016858,2]
[393363659,1762529401686,1000.0,0.00016832,2]
[393363660,1762529402019,1200.0,0.00016931,2]
[393363661,1762529402385,171.0,0.00016931,2]
[393363662,1762529402568,300.0,0.00016931,2]
[393363663,1762529404432,4954.35,0.00016922,2]
[393363664,1762529406263,163.37,0.00016922,2]
[393363665,1762529406503,1601.45646352,0.00016832,2]
[393363666,1762529406527,7298.44590386,0.00016832,2]
[393363667,1762529418152,165.77,0.00016528,2]
[393363668,1762529419762,500.0,0.00016931,2]
[393363713,1762529432146,250.0,0.000167,2]
[393363714,1762529432184,-5272.15670034,0.00016932,2]
[393363715,1762529432195,-18496.33249966,0.00016932,2]
[393363716,1762529432204,-61791.99409761,0.00016932,2]
[393363717,1762529432215,-271.037225,0.00016932,2]
[393363718,1762529432226,-1417.553234,0.00016932,2]
[393363719,1762529432237,-288.2,0.00016932,2]
[393363720,1762529432256,-10354.668,0.00016932,2]
[393363721,1762529432268,-334.45079895,0.00016932,2]
[393363722,1762529432282,-33144.0269718,0.00016932,2]
[393363723,1762529432294,-4033.93363048,0.00016932,2]
[393363728,1762529437863,-112416.41812451,0.00016932,2]
[393363729,1762529437875,-12647.23686851,0.00016932,2]
[393363730,1762529437889,-62522.1770446,0.00016932,2]
[393363731,1762529437901,-2724.7365,0.00016932,2]
[393363732,1762529437911,-1122.70891671,0.00016932,2]
[393363733,1762529437989,-1136.418305,0.00016932,2]
[393363734,1762529438002,-569.26722893,0.00016932,2]
[393363735,1762529438016,-1814.66994,0.00016932,2]
[393363736,1762529438030,-1437.76353558,0.00016932,2]
[393363737,1762529438042,-870.87,0.00016932,2]
[393363739,1762529438376,-575.77940608,0.00016932,2]
[393363740,1762529438392,-796.29749574,0.00016932,2]
[393363741,1762529438408,-6205.81505406,0.00016932,2]
[393363742,1762529438420,-259.36743815,0.00016932,2]
[393363743,1762529438432,-1384.08379547,0.00016932,2]
[393363753,1762529440010,-6881.1467973,0.00016932,2]
[393363754,1762529440023,-94999.37959152,0.00016932,2]
[393363755,1762529440033,-1000.0,0.00016932,2]
[393363756,1762529440043,-4074.87,0.00016951,2]
[393363757,1762529440052,-16192.8520359,0.00016951,2]
[393363758,1762529440062,-8899.90236733,0.00016951,2]
[393363759,1762529440072,-500.0,0.00016972,2]
[393363760,1762529440082,-378.35876522,0.00016973,2]
[393363761,1762529440091,-500.0,0.00016973,2]
[393363762,1762529440102,-276.98256897,0.00016985,2]
[393363763,1762529440112,-2000.0,0.00017,2]
[393363764,1762529440122,-173.99,0.00017065,2]
[393363765,1762529440132,-16192.8520359,0.00017069,2]
[393363766,1762529440141,-8899.90236733,0.00017069,2]
[393363767,1762529440151,-168.0,0.00017099,2]
[393363768,1762529440161,-698.68,0.000171,2]
[393363769,1762529440170,-477.21,0.000171,2]
[393363770,1762529440180,-168.0,0.00017113,2]
[393363771,1762529440190,-276.98256897,0.00017137,2]
[393363772,1762529440200,-168.0,0.00017163,2]
[393363773,1762529440211,-150.0,0.00017188,2]
[393363774,1762529440221,-150.0,0.00017188,2]
[393363775,1762529440232,-150.0,0.00017188,2]
[393363776,1762529440243,-150.0,0.00017188,2]
[393363777,1762529440253,-500.0,0.00017188,2]
[393363778,1762529440269,-631.0,0.00017188,2]
[393363779,1762529440280,-500.0,0.00017188,2]
[393363780,1762529440290,-16192.8520359,0.00017188,2]
[393363781,1762529440300,-150.0,0.00017188,2]
[393363782,1762529440310,-500.0,0.00017188,2]
[393363783,1762529440320,-500.0,0.00017188,2]
[393363784,1762529440332,-500.0,0.00017188,2]
[393363785,1762529440342,-500.0,0.00017188,2]
[393363786,1762529440352,-500.0,0.00017188,2]
[393363787,1762529440363,-500.0,0.00017188,2]
[393363788,1762529440373,-500.0,0.00017188,2]
[393363789,1762529440384,-500.0,0.00017188,2]
[393363790,1762529440395,-500.0,0.00017188,2]
[393363791,1762529440405,-168.34614064,0.00017188,2]
[393363792,1762529440415,-500.0,0.00017188,2]
[393363794,1762529440425,-500.0,0.00017188,2]
[393363796,1762529440436,-150.0,0.00017188,2]
[393363797,1762529440446,-580.0,0.00017188,2]
[393363798,1762529440455,-150.0,0.00017188,2]
[393363799,1762529440465,-500.0,0.00017188,2]
[393363800,1762529440475,-150.0,0.00017188,2]
[393363801,1762529440485,-150.0,0.00017188,2]
[393363802,1762529440495,-500.0,0.00017188,2]
[393363804,1762529440508,-500.0,0.00017188,2]
[393363806,1762529440518,-8899.90236733,0.00017188,2]
[393363807,1762529440527,-187.14,0.00017196,2]
[393363808,1762529440537,-1397.36,0.000172,2]
[393363809,1762529440546,-698.68,0.000172,2]
[393363810,1762529440556,-1961.0,0.00017253,2]
[393363811,1762529440566,-168.0,0.00017287,2]
[393363812,1762529440576,-276.98256897,0.0001729,2]
[393363813,1762529440586,-16192.8520359,0.00017307,2]
[393363814,1762529440596,-8899.90236733,0.00017307,2]
[393363815,1762529440606,-201.5261164,0.00017307,2]
[393363816,1762529440615,-151.00065805,0.00017307,2]
[393363817,1762529440624,-150.0,0.00017307,2]
[393363818,1762529440634,-150.0,0.00017307,2]
[393363819,1762529440643,-150.0,0.00017307,2]
[393363820,1762529440652,-150.0,0.00017307,2]
[393363821,1762529440661,-1214.60710954,0.00017313,2]
[393363822,1762529440671,-168.0,0.00017324,2]
[393363823,1762529440680,-150.0,0.00017325,2]
[393363824,1762529440692,-156.32912669,0.00017325,2]
[393363825,1762529440702,-150.0,0.00017325,2]
[393363826,1762529440712,-150.0,0.00017325,2]
[393363827,1762529440721,-500.0,0.00017325,2]
[393363828,1762529440732,-631.0,0.00017325,2]
[393363829,1762529440741,-500.0,0.00017325,2]
[393363830,1762529440751,-150.0,0.00017325,2]
[393363831,1762529440765,-500.0,0.00017325,2]
[393363832,1762529440775,-500.0,0.00017325,2]
[393363833,1762529440787,-500.0,0.00017325,2]
[393363834,1762529440797,-223.72728903,0.00017325,2]
[393363835,1762529440806,-580.0,0.00017325,2]
[393363836,1762529440815,-500.0,0.00017325,2]
[393363837,1762529440825,-150.0,0.00017325,2]
[393363838,1762529440835,-500.0,0.00017325,2]
[393363839,1762529440845,-500.0,0.00017325,2]
[393363840,1762529440855,-642.66,0.00017333,2]
[393363841,1762529440864,-176.33,0.00017387,2]
[393363842,1762529440874,-1961.0,0.00017395,2]
[393363843,1762529440884,-3601.0,0.00017402,2]
[393363844,1762529440894,-16192.8520359,0.00017425,2]
[393363845,1762529440905,-8899.90236733,0.00017425,2]
[393363846,1762529440914,-276.98256897,0.00017442,2]
[393363847,1762529440925,-150.0,0.00017444,2]
[393363848,1762529440935,-150.0,0.00017444,2]
[393363849,1762529440944,-150.0,0.00017444,2]
[393363850,1762529440953,-150.0,0.00017444,2]
[393363851,1762529440963,-150.0,0.00017462,2]
[393363852,1762529440972,-150.0,0.00017462,2]
[393363853,1762529440981,-150.0,0.00017462,2]
[393363854,1762529440990,-500.0,0.00017462,2]
[393363855,1762529440999,-631.0,0.00017462,2]
[393363856,1762529441013,-500.0,0.00017462,2]
[393363857,1762529441021,-150.0,0.00017462,2]
[393363858,1762529441031,-500.0,0.00017462,2]
[393363859,1762529441040,-233.33506662,0.00017462,2]
[393363860,1762529441049,-500.0,0.00017462,2]
[393363861,1762529441059,-580.0,0.00017462,2]
[393363862,1762529441068,-500.0,0.00017462,2]
[393363863,1762529441078,-150.0,0.00017462,2]
[393363864,1762529441087,-500.0,0.00017462,2]
[393363865,1762529441096,-150.0,0.00017462,2]
[393363866,1762529441105,-187.1441408,0.0001747,2]
[393363867,1762529441115,-477.21,0.000175,2]
[393363868,1762529441124,-578.29,0.000175,2]
[393363869,1762529441134,-477.21,0.000175,2]
[393363870,1762529441144,-168.0,0.00017509,2]
[393363871,1762529441153,-1000.0,0.00017521,2]
[393363872,1762529441163,-168.0,0.00017523,2]
[393363873,1762529441172,-3601.0,0.00017532,2]
[393363874,1762529441182,-16192.8520359,0.00017544,2]
[393363875,1762529441191,-8899.90236733,0.00017544,2]
[393363876,1762529441200,-150.0,0.00017581,2]
[393363877,1762529441209,-150.0,0.00017581,2]
[393363878,1762529441218,-183.12149074,0.00017581,2]
[393363879,1762529441228,-276.98256897,0.00017595,2]
[393363880,1762529441237,-150.0,0.00017599,2]
[393363881,1762529441246,-150.0,0.00017599,2]
[393363882,1762529441258,-150.0,0.00017599,2]
[393363883,1762529441267,-244.37088904,0.00017599,2]
[393363884,1762529441276,-631.0,0.00017599,2]
[393363885,1762529441285,-500.0,0.00017599,2]
[393363886,1762529441294,-154.60451121,0.00017599,2]
[393363887,1762529441303,-500.0,0.00017599,2]
[393363888,1762529441312,-500.0,0.00017599,2]
[393363889,1762529441321,-580.0,0.00017599,2]
[393363890,1762529441330,-500.0,0.00017599,2]
[393363891,1762529441339,-150.0,0.00017599,2]
[393363892,1762529441348,-373.00202241,0.00017599,2]
[393363893,1762529441357,-698.68,0.000176,2]
[393363894,1762529441367,-477.21,0.000176,2]
[393363895,1762529441376,-477.21,0.00017644,2]
[393363896,1762529441386,-477.21,0.00017644,2]
[393363897,1762529441395,-477.21,0.00017644,2]
[393363898,1762529441404,-954.24,0.00017644,2]
[393363899,1762529441413,-477.21,0.00017644,2]
[393363900,1762529441423,-477.21,0.00017644,2]
[393363901,1762529441431,-477.21,0.00017644,2]
[393363902,1762529441441,-477.21,0.00017644,2]
[393363903,1762529441451,-476.76,0.00017644,2]
[393363904,1762529441460,-16192.8520359,0.00017663,2]
[393363905,1762529441469,-150.0,0.00017718,2]
[393363906,1762529441478,-193.33883089,0.00017718,2]
[393363907,1762529441488,-150.0,0.00017736,2]
[393363908,1762529441498,-158.98498589,0.00017736,2]
[393363909,1762529441512,-156.55778374,0.00017736,2]
[393363910,1762529441523,-631.0,0.00017736,2]
[393363911,1762529441533,-500.0,0.00017736,2]
[393363912,1762529441543,-407.89774482,0.00017736,2]
[393363913,1762529441554,-500.0,0.00017736,2]
[393363914,1762529441565,-580.0,0.00017736,2]
[393363915,1762529441575,-500.0,0.00017736,2]
[393363916,1762529441586,-222.70415926,0.00017736,2]
[393363917,1762529441596,-276.98256897,0.00017747,2]
[393363918,1762529441606,-168.0,0.00017748,2]
[393363919,1762529441616,-166.67,0.00017753,2]
[393363920,1762529441626,-16192.8520359,0.00017781,2]
[393363921,1762529441635,-500.0,0.00017808,2]
[393363922,1762529441644,-168.0,0.00017838,2]
[393363923,1762529441654,-168.0,0.00017847,2]
[393363924,1762529441663,-230.87944646,0.00017855,2]
[393363925,1762529441672,-200.0,0.00017855,2]
[393363926,1762529441681,-500.0,0.00017856,2]
[393363927,1762529441692,-200.0,0.00017856,2]
[393363928,1762529441702,-200.0,0.00017856,2]
[393363929,1762529441712,-250.0,0.00017873,2]
[393363930,1762529441722,-631.0,0.00017873,2]
[393363931,1762529441731,-500.0,0.00017873,2]
[393363932,1762529441740,-500.0,0.00017873,2]
[393363934,1762529441750,-580.0,0.00017873,2]
[393363936,1762529441762,-500.0,0.00017873,2]
[393363937,1762529441772,-168.0,0.00017882,2]
[393363938,1762529441782,-16192.8520359,0.000179,2]
[393363939,1762529441792,-158.57050889,0.000179,2]
[393363940,1762529441802,-924.8620724,0.000179,2]
[393363941,1762529441812,-276.98256897,0.000179,2]
[393363942,1762529441824,-356.64477446,0.000179,2]
[393363943,1762529441834,-399.79393222,0.000179,2]
[393363944,1762529441844,-168.0,0.00017904,2]
[393363945,1762529441854,-500.0,0.00017945,2]
[393363946,1762529441863,-500.0,0.00017973,2]
[393363947,1762529441873,-500.0,0.00017973,2]
[393363948,1762529441882,-510.5905813,0.00017973,2]
[393363949,1762529441892,-512.33896105,0.00017973,2]
[393363950,1762529441902,-500.0,0.00017973,2]
[393363951,1762529441912,-500.0,0.00017973,2]
[393363952,1762529441922,-500.0,0.00017973,2]
[393363953,1762529441932,-500.0,0.00017973,2]
[393363954,1762529441941,-500.0,0.00017973,2]
[393363955,1762529441951,-500.0,0.00017973,2]
[393363956,1762529441960,-359.27923267,0.00017973,2]
[393363957,1762529441970,-500.0,0.00017973,2]
[393363958,1762529441979,-500.0,0.00017973,2]
[393363959,1762529441988,-500.0,0.00017982,2]
[393363960,1762529441997,-169.320687,0.00017992,2]
[393363961,1762529442009,-164769.8064776,0.00017992,2]
[393363962,1762529442019,-1585.8445926,0.00017992,2]
[393363963,1762529442028,-246.5088618,0.00017995,2]
[393363964,1762529442037,-212.8401112,0.00017996,2]
[393363965,1762529442046,-16925.7657932,0.00017996,2]
[393363966,1762529442056,-20083.5225524,0.00017996,2]
[393363967,1762529442065,-2203.0,0.00017998,2]
[393363968,1762529442074,-42647.62337511,0.00017998,2]
[393363969,1762529442435,-312.3720001,0.00017998,2]
[393363970,1762529442447,-1515.534,0.00017998,2]
[393363971,1762529442462,-3300.0,0.00017998,2]
[393363972,1762529442516,-70209.22121103,0.00017998,2]
[393363973,1762529442527,-1678.4,0.00017998,2]
[393363974,1762529442651,-2079.56998397,0.00017998,2]
[393363975,1762529442666,-1051.83162811,0.00017998,2]
[393363978,1762529443124,-8899.90236733,0.00017663,2]
[393363979,1762529443134,-1920.79396656,0.00017998,2]
[393364003,1762529444552,1000.0,0.00016832,2]
[393364009,1762529446204,-456.5425079,0.000175,2]
[393364010,1762529446216,-20.6674921,0.000175,2]
[393364011,1762529446225,-15075.17410021,0.00017998,2]
[393364012,1762529446236,-450.0750025,0.00017998,2]
[393364013,1762529446247,-1143.15,0.00017998,2]
[393364014,1762529446336,-5059.3741,0.00017998,2]
[393364015,1762529446348,-433.26841755,0.00017998,2]
[393364016,1762529446359,-1395.1784,0.00017998,2]
[393364017,1762529446371,-3601.52382706,0.00017998,2]
[393364018,1762529446381,-3121.30496544,0.00017998,2]
[393364019,1762529446443,-533.8883432,0.00017998,2]
[393364020,1762529446456,-3887.16904876,0.00017998,2]
[393364021,1762529446468,-300.0,0.00017999,2]
[393364022,1762529446478,-300.0,0.00017999,2]
[393364023,1762529446489,-300.0,0.00017999,2]
[393364024,1762529446500,-1092.38047791,0.00018,2]
[393364025,1762529456545,377.7479,0.00016626,2]
[393364026,1762529467724,466.21108009,0.00039025,120]
[393364027,1762529483592,520.51604896,0.00039025,120]
[393364028,1762529490874,396.30453192,0.00039025,120]
[393364029,1762529498502,-250.0,0.00017,2]
[393364030,1762529519971,500.0,0.00016931,2]
[393364031,1762529557848,9000.01,0.00016832,2]
[393364032,1762529557875,10000.01,0.00016832,2]
[393364033,1762529557902,10000.01,0.00016832,2]
[393364034,1762529557929,10000.01,0.00016832,2]
[393364035,1762529557956,10000.01,0.00016832,2]
[393364036,1762529557982,10000.01,0.00016832,2]
[393364037,1762529558009,10000.01,0.00016832,2]
[393364038,1762529558035,2000.0,0.00016832,2]
[393364039,1762529582955,300.0,0.00016831,2]
[393364040,1762529598881,500.0,0.00016831,2]
[393364041,1762529598912,500.0,0.00016831,2]
[393364042,1762529598948,423.64840238,0.00016831,2]